bitfinex/quotes_ETHUSD_20250131
["timestamp","ask_amount","ask_price","bid_price","bid_amount"]
[1738362726731,3.01522,3316.5,3316.4,0.28195778]
[1738362726931,3.01537,3316.4,3316.1,0.28195778]
[1738362727629,3.01549,3316.2,3316.1,0.28195778]
[1738362728165,3.01537,3316.4,3316.1,0.28195778]
[1738362728725,3.01549,3316.3,3315.9,0.60577889]
[1738362729462,3.01553,3316.2,3315.9,0.60577889]
[1738362729957,3.01537,3316.4,3315.9,0.60577889]
[1738362730322,3.01541,3316.3,3315.9,0.60577889]
[1738362730758,3.0155,3316.2,3315.9,0.60577889]
[1738362732333,0.55,3316.3,3315.5,0.5]
[1738362732547,3.01576,3316.0,3315.2,3.51639]
[1738362732767,3.01579,3315.9,3315.2,3.51639]
[1738362732967,0.55,3315.8,3315.2,0.5]
[1738362733167,3.01585,3315.9,3315.2,3.51639]
[1738362734045,3.01581,3315.9,3315.2,3.51639]
[1738362734250,3.01588,3315.8,3315.2,3.51639]
[1738362734769,3.01596,3315.7,3315.2,0.5]
[1738362734930,3.01578,3315.9,3315.2,3.51634]
[1738362735125,3.0157,3316.0,3315.2,0.5]
[1738362735328,3.01588,3315.8,3315.2,0.5]
[1738362735572,3.01588,3315.8,3314.9,3.01667]
[1738362735573,0.7925,3316.2,3314.9,0.5]
[1738362735724,3.01641,3315.2,3314.9,0.5]
[1738362736064,3.01663,3315.0,3314.6,0.5]
[1738362736359,3.01673,3314.9,3314.5,0.61873035]
[1738362737068,3.01678,3314.8,3314.5,0.61873035]
[1738362737263,3.0164,3315.2,3314.3,1.2496]
[1738362737443,3.01691,3314.7,3314.3,1.2496]
[1738362737864,3.01691,3314.7,3314.4,0.60589771]
[1738362738031,3.01691,3314.7,3314.3,0.7496]
[1738362738032,3.01704,3314.5,3314.3,0.7496]
[1738362738355,3.01713,3314.4,3314.3,0.7496]
[1738362739351,3.83578,3314.7,3314.3,0.7496]
[1738362739554,4.03878,3314.7,3314.3,0.7496]
[1738362739753,3.01702,3314.6,3314.3,0.7496]
[1738362739953,1.0219,3314.7,3314.3,0.7496]
[1738362740181,3.01696,3314.6,3314.3,0.7496]
[1738362740382,1.0219,3314.7,3314.3,0.7496]
[1738362740894,4.03885,3314.7,3314.3,0.7496]
[1738362741571,3.01695,3314.6,3314.3,0.7496]
[1738362741771,3.01706,3314.5,3314.3,0.7496]
[1738362742073,3.01713,3314.4,3314.3,0.7496]
[1738362743663,3.56713,3314.4,3314.3,0.7496]
[1738362744252,4.31823,3314.4,3314.3,0.7496]
[1738362745959,7.31823,3314.4,3314.3,0.7496]
[1738362746987,0.7511,3314.4,3314.3,0.7496]
[1738362747287,3.01713,3314.4,3314.3,0.7496]
[1738362747457,3.22013,3314.4,3314.3,0.7496]
[1738362747786,3.77013,3314.4,3314.3,0.7496]
[1738362749102,7.55553,3314.4,3314.3,0.7496]
[1738362749265,7.92615806,3314.4,3314.3,0.7496]
[1738362751092,7.55553,3314.4,3314.3,0.7496]
[1738362752054,7.56303,3314.4,3314.3,0.7496]
[1738362753352,7.55553,3314.4,3314.3,0.7496]
[1738362753584,4.55553,3314.4,3314.3,0.7496]
[1738362756922,3.0168,3314.8,3314.3,0.7496]
[1738362757237,3.82923,3314.4,3314.3,0.7496]
[1738362757425,3.01793,3313.6,3313.2,0.5]
[1738362757783,3.01797,3313.5,3313.2,0.5]
[1738362759123,3.01793,3313.6,3313.2,0.5]
[1738362759296,0.203,3313.7,3313.2,0.5]
[1738362760123,0.55,3313.5,3313.2,0.5]
[1738362760287,3.01813,3313.3,3313.2,0.5]
[1738362761356,3.01786,3313.6,3313.2,0.5]
[1738362761658,3.01802,3313.5,3313.2,0.5]
[1738362762675,3.22078,3313.7,3313.2,0.5]
[1738362762880,3.01788,3313.6,3313.2,0.5]
[1738362763156,0.203,3313.7,3313.2,0.5]
[1738362763330,3.01797,3313.5,3313.2,0.5]
[1738362763922,3.01806,3313.4,3313.2,0.5]
[1738362764553,3.01766,3313.9,3313.2,3.5182]
[1738362764766,3.22052,3314.0,3313.3,3.01813]
[1738362764923,3.22052,3314.0,3313.2,0.85182]
[1738362764924,3.01761,3313.9,3313.2,0.85182]
[1738362765620,3.01761,3313.9,3313.2,3.87003]
[1738362766625,0.55,3313.8,3313.3,0.28201567]
[1738362766825,3.01777,3313.7,3313.3,0.28201567]
[1738362767031,3.01776,3313.8,3313.3,0.28201567]
[1738362767439,1.013,3314.1,3313.3,0.28201567]
[1738362767643,3.01765,3313.9,3313.3,0.28201567]
[1738362768159,3.01765,3313.9,3313.4,0.28201567]
[1738362770086,3.01789,3313.6,3313.2,0.5]
[1738362770276,0.55,3313.6,3313.2,0.5]
[1738362770783,3.56786,3313.6,3313.2,0.5]
[1738362771190,3.56786,3313.6,3313.3,0.28242333]
[1738362773193,3.01796,3313.5,3313.2,0.5]
[1738362774188,3.01808,3313.4,3313.2,0.5]
[1738362774353,3.01796,3313.5,3313.2,0.5]
[1738362774354,6.036,3313.5,3313.2,0.5]
[1738362775471,3.01796,3313.5,3313.2,0.5]
[1738362776889,3.01806,3313.4,3313.2,0.5]
[1738362778378,0.81,3314.1,3313.5,3.01789]
[1738362778609,3.01751,3314.0,3313.3,3.01813]
[1738362781212,3.838,3313.9,3313.4,0.28280027]
[1738362781709,3.0176,3313.9,3313.4,0.28280027]
[1738362782514,3.0176,3313.9,3313.5,0.28278417]
[1738362782714,3.0176,3313.9,3313.5,0.56558444]
[1738362784116,3.0176,3313.9,3313.3,3.01813]
[1738362785724,3.0176,3313.9,3313.4,0.28273635]
[1738362786130,3.0176,3313.9,3313.4,0.5654727]
[1738362786832,3.01771,3313.8,3313.4,0.5654727]
[1738362788838,3.01771,3313.8,3313.4,0.28273635]
[1738362789528,3.01771,3313.8,3313.2,0.5]
[1738362790235,3.01771,3313.8,3313.3,0.28275804]
[1738362790935,3.01771,3313.8,3313.3,0.56552238]
[1738362791534,3.01771,3313.8,3313.3,0.28276434]
[1738362792634,3.01771,3313.8,3313.4,0.56554806]
[1738362794037,3.01771,3313.8,3313.4,0.28276434]
[1738362795035,3.01771,3313.8,3313.2,3.5182]
[1738362796102,3.01771,3313.8,3313.3,0.28281674]
[1738362796554,3.01786,3313.6,3313.3,0.28281674]
[1738362797933,3.01786,3313.6,3313.0,4.11907506]
[1738362798681,0.8244,3313.5,3313.0,3.51835]
[1738362798805,3.01821,3313.3,3312.7,3.51868]
[1738362799001,3.0183,3313.2,3312.7,0.5]
[1738362800124,3.0183,3313.2,3312.8,0.28283568]
[1738362800419,3.01833,3313.1,3312.8,0.28283568]
[1738362800619,3.0185,3312.9,3312.8,0.28283568]
[1738362801131,3.5685,3312.9,3312.8,0.28283568]
[1738362801329,0.55,3312.8,3312.5,0.56563271]
[1738362801836,3.01877,3312.6,3312.5,0.56563271]
[1738362802365,3.56877,3312.6,3312.5,0.56563271]
[1738362802573,4.39317,3312.6,3312.5,0.28279703]
[1738362803277,3.01898,3312.4,3312.2,0.56563271]
[1738362803729,3.01898,3312.4,3312.2,0.28279703]
[1738362804044,3.8432,3312.6,3312.2,0.28279703]
[1738362804248,0.55,3312.5,3312.2,0.28279703]
[1738362804416,3.56887,3312.5,3312.2,0.28279703]
[1738362804953,0.55,3312.5,3312.1,0.005]
[1738362806052,3.01887,3312.5,3312.1,0.005]
[1738362807036,0.7884,3312.9,3312.2,3.51906]
[1738362807237,0.203,3312.9,3312.3,3.01905]
[1738362807551,0.7884,3313.3,3312.9,0.5]
[1738362807552,0.203,3313.3,3312.9,0.5]
[1738362807847,0.203,3313.3,3312.9,3.5185]
[1738362808209,3.01797,3313.5,3312.9,3.5185]
[1738362808459,0.8329,3313.9,3313.1,3.01823]
[1738362808744,0.203,3313.9,3313.3,3.01807]
[1738362808950,0.203,3313.9,3313.1,3.01823]
[1738362809109,0.203,3313.9,3313.4,3.01804]
[1738362809538,3.2206,3313.9,3313.2,3.01817]
[1738362809947,3.0176,3313.9,3313.2,3.01817]
[1738362811045,3.0176,3313.9,3313.1,3.01823]
[1738362811216,3.0176,3313.9,3313.3,3.0181]
[1738362812046,3.22047,3314.1,3313.3,3.0181]
[1738362812253,3.0175,3314.0,3313.3,3.0181]
[1738362813152,3.0175,3314.0,3313.4,3.01804]
[1738362815552,0.55,3313.8,3312.0,3.01931]
[1738362815727,3.0182,3313.3,3312.5,3.01878]
[1738362815920,3.85113,3313.2,3312.5,3.01878]
[1738362816118,0.8329,3313.2,3312.7,3.01867]
[1738362823020,3.85115,3313.2,3312.5,3.01878]
[1738362823759,3.85115,3313.2,3312.6,3.01875]
[1738362826358,0.8329,3313.2,3312.7,3.01866]
[1738362826719,0.7997,3313.9,3313.1,0.5]
[1738362827055,0.7997,3314.3,3313.7,3.01774]
[1738362827259,3.81693,3314.3,3313.7,3.01774]
[1738362828526,3.01742,3314.1,3313.5,3.01792]
[1738362828743,0.7997,3314.3,3313.1,0.5]
[1738362828744,0.8068,3313.7,3313.1,3.5183]
[1738362829624,0.8068,3313.7,3313.1,3.0183]
[1738362830435,3.82458,3313.7,3313.1,3.0183]
[1738362832330,0.8068,3313.7,3313.1,3.0183]
[1738362835660,0.8068,3313.7,3313.2,3.01822]
[1738362837873,3.22018,3314.4,3312.9,1.11687055]
[1738362837874,4.04683,3314.8,3313.9,3.01759]
[1738362838037,4.04683,3314.8,3314.0,3.01748]
[1738362839562,4.04683,3314.8,3314.1,3.01739]
[1738362842480,3.21983,3314.8,3314.1,3.01739]
[1738362842685,0.827,3314.7,3314.1,3.01739]
[1738362844889,0.55,3314.6,3314.1,3.01739]
[1738362845047,0.55,3314.6,3314.0,3.01748]
[1738362848290,0.55,3314.6,3314.1,3.01739]
[1738362848461,0.55,3314.6,3314.1,0.603487]
[1738362848986,0.55,3314.6,3314.1,3.620887]
[1738362849288,0.55,3314.6,3314.1,3.0174]
[1738362858603,3.56695,3314.6,3314.1,3.0174]
[1738362859375,0.8294,3314.5,3314.1,3.0174]
[1738362865412,0.8294,3314.5,3313.8,3.01761]
[1738362865572,3.84651,3314.5,3313.8,3.01761]
[1738362865777,3.01717,3314.4,3313.8,3.01765]
[1738362865979,3.01717,3314.4,3313.7,3.63603637]
[1738362866178,0.8294,3314.5,3313.9,3.01758]
[1738362867213,0.8294,3314.5,3314.0,0.28280573]
[1738362869122,0.8294,3314.5,3314.1,0.28280573]
[1738362870204,0.8294,3314.5,3314.3,3.01715]
[1738362870404,0.8294,3314.5,3314.1,3.30020573]
[1738362870596,0.8294,3314.5,3314.2,3.01727]
[1738362871513,0.8294,3314.5,3314.1,3.0174]
[1738362871716,0.55,3314.4,3313.9,3.01758]
[1738362872028,0.8294,3314.5,3314.4,3.01713]
[1738362872315,0.55,3314.9,3314.0,0.28300054]
[1738362872521,1.3511,3314.5,3314.0,0.28300054]
[1738362873117,1.3511,3314.5,3314.0,3.30050054]
[1738362873286,1.3511,3314.5,3314.1,3.0174]
[1738362873613,1.3511,3314.5,3314.1,3.30040054]
[1738362874523,1.3511,3314.5,3314.2,3.0173]
[1738362875016,0.8011,3314.9,3314.2,1.13177005]
[1738362875217,0.8011,3314.9,3314.6,3.0169]
[1738362879821,0.8011,3314.9,3314.5,0.59464618]
[1738362880197,0.55,3314.8,3314.5,0.59464618]
[1738362882527,0.55,3314.8,3314.4,3.0171]
[1738362884427,2.77275904,3314.6,3314.4,3.0171]
[1738362894533,1.42193216,3314.5,3314.4,3.0171]
[1738362903038,0.8206,3314.4,3314.0,3.01749]
[1738362903247,1.42193216,3314.1,3314.0,3.01749]
[1738362904630,1.42193216,3314.1,3314.0,3.24382944]
[1738362905342,1.42193216,3314.1,3314.0,3.52671227]
[1738362905529,1.42193216,3314.1,3314.0,3.8095963]
[1738362906042,1.42193216,3314.1,3314.0,3.58325686]
[1738362906842,1.42193216,3314.1,3314.0,3.30037283]
[1738362907255,1.42193216,3314.1,3314.0,3.01749]
[1738362908748,1.42193216,3314.1,3314.0,3.620999]
[1738362908911,1.42193216,3314.3,3314.2,3.01731]
[1738362909848,1.42193216,3314.3,3314.2,3.30006966]
[1738362910341,1.42193216,3314.3,3314.2,3.58283188]
[1738362912922,2.25433216,3314.7,3314.6,3.01695]
[1738362913149,5.39,3314.9,3314.8,3.01677]
[1738362913355,1.42193216,3314.9,3314.8,3.01677]
[1738362913719,0.8324,3315.7,3315.3,3.01624]
[1738362913953,1.42193216,3315.5,3315.4,3.01622]
[1738362914135,1.42193216,3315.7,3315.6,3.01604]
[1738362914317,1.42193216,3315.9,3315.7,3.01595]
[1738362914629,1.42193216,3315.9,3315.8,3.01586]
[1738362915058,1.42193216,3316.1,3316.0,3.01568]
[1738362915261,3.2234,3316.4,3316.0,3.01568]
[1738362915262,1.42193216,3316.3,3316.2,3.01549]
[1738362915424,1.42193216,3316.5,3316.4,3.01531]
[1738362916363,1.42193216,3316.7,3316.6,3.01513]
[1738362916662,2.76865126,3317.1,3316.8,3.01486]
[1738362916828,2.76865126,3317.1,3317.0,3.01477]
[1738362917160,2.76865126,3317.4,3317.1,3.01464]
[1738362917862,2.76865126,3317.4,3316.8,3.01494]
[1738362918034,2.76865126,3317.4,3317.0,3.01474]
[1738362919232,2.76865126,3317.4,3316.8,3.01487]
[1738362919565,2.76865126,3317.4,3316.9,3.01483]
[1738362922837,5.78335126,3317.1,3316.5,1.01013012]
[1738362923449,2.76865126,3316.8,3316.5,1.01013012]
[1738362928854,0.55,3316.9,3316.5,1.01013012]
[1738362932573,2.76865126,3317.1,3316.6,3.01513]
[1738362932771,2.76865126,3317.1,3316.6,3.71918401]
[1738362932938,2.76865126,3317.1,3316.8,3.01493]
[1738362933341,2.76865126,3317.4,3316.9,3.01484]
[1738362933765,2.76865126,3317.4,3316.8,0.5]
[1738362933968,2.76865126,3317.4,3317.0,3.01476]
[1738362934176,2.76865126,3317.4,3317.0,6.380936]
[1738362934377,2.76865126,3317.4,3317.1,3.01467]
[1738362935294,3.01397,3317.9,3317.1,3.01467]
[1738362935295,0.8035,3317.9,3317.1,3.01468]
[1738362935509,2.76865126,3318.0,3317.5,3.01426]
[1738362935641,2.76865126,3318.0,3317.3,3.01447]
[1738362935846,2.76865126,3318.0,3317.5,3.01431]
[1738362937674,2.76865126,3318.0,3317.3,3.365917]
[1738362937872,0.55,3317.9,3317.3,0.351447]
[1738362938042,2.76865126,3317.7,3317.2,4.02448696]
[1738362939181,3.01441,3317.4,3317.2,1.00991696]
[1738362939573,3.56435,3317.5,3317.2,1.00991696]
[1738362942174,0.7826,3317.6,3317.2,1.00991696]
[1738362942353,2.76865126,3317.7,3317.2,1.50991696]
[1738362942687,2.76865126,3317.7,3317.2,4.67548866]
[1738362943783,2.76865126,3317.7,3317.3,0.28179694]
[1738362944984,2.76865126,3317.7,3317.4,0.56382593]
[1738362946086,2.76865126,3318.0,3317.5,3.01431]
[1738362946393,2.76865126,3318.0,3317.5,3.29610694]
[1738362946790,0.55,3317.9,3317.5,0.28179694]
[1738362946951,0.55,3317.9,3317.6,0.28202899]
[1738362946952,2.76865126,3317.7,3317.6,0.28202899]
[1738362949525,3.01408,3317.8,3317.6,0.28202899]
[1738362949925,3.01408,3317.8,3317.2,4.67548866]
[1738362950093,3.01408,3317.8,3317.3,0.82995797]
[1738362950992,3.01408,3317.8,3317.4,0.28205355]
[1738362951191,3.01408,3317.8,3317.4,0.56410711]
[1738362951391,2.76865126,3317.7,3317.4,0.56410711]
[1738362952096,3.56431,3317.5,3317.4,0.56410711]
[1738362952692,3.01446,3317.4,3317.2,1.00991696]
[1738362953024,2.76865126,3317.4,3317.2,1.00991696]
[1738362953226,3.01449,3317.3,3317.2,1.00991696]
[1738362966707,2.76865126,3317.4,3317.2,1.00991696]
[1738362967132,5.78310126,3317.4,3317.2,1.00991696]
[1738362971629,0.7789,3317.9,3317.3,0.5]
[1738362971824,0.7789,3317.9,3317.4,3.01437]
[1738362972025,2.76865126,3318.0,3317.4,3.01437]
[1738362972220,2.76865126,3318.0,3317.5,3.01431]
[1738362972659,1.41902129,3317.7,3317.5,3.01431]
[1738362973960,1.41902129,3317.7,3317.6,3.01422]
[1738362974133,1.41902129,3317.7,3317.6,0.602853]
[1738362974339,1.41902129,3317.7,3317.6,3.01422]
[1738362974640,2.76695944,3318.1,3317.6,3.01422]
[1738362978934,2.76695944,3318.1,3317.6,3.01419]
[1738362979131,3.01387,3318.0,3317.4,3.01433]
[1738362979364,3.01387,3318.0,3317.4,3.54162526]
[1738362979969,3.01387,3318.0,3317.5,0.28224659]
[1738362980467,2.76695944,3318.1,3317.5,0.28224659]
[1738362980646,2.76695944,3318.1,3317.7,3.01413]
[1738362982468,2.76695944,3318.1,3317.6,3.01421]
[1738362982669,2.76695944,3318.1,3317.6,3.66979053]
[1738362983378,3.01414,3317.7,3317.3,0.5]
[1738362983577,2.76695944,3317.5,3316.9,3.5148]
[1738362984977,2.76695944,3317.5,3317.0,0.28219116]
[1738362985179,2.76695944,3317.5,3317.0,0.96338228]
[1738362986180,2.76695944,3317.5,3317.1,0.28221719]
[1738362986557,2.76695944,3317.5,3317.1,0.56440835]
[1738362987444,5.78133944,3317.5,3317.1,0.56440835]
[1738362987642,5.78133944,3317.5,3317.0,0.68119112]
[1738362988076,5.78133944,3317.5,3317.2,0.28224899]
[1738362988282,2.76695944,3317.5,3317.2,0.28224899]
[1738362989482,5.78132944,3317.5,3317.2,0.28224899]
[1738362989680,3.01448,3317.4,3317.2,0.28224899]
[1738362989878,3.01448,3317.4,3317.3,0.28224899]
[1738362991281,3.56448,3317.4,3317.3,0.28224899]
[1738362991468,3.79258,3317.4,3317.3,0.28224899]
[1738362991974,3.79258,3317.4,3316.8,0.28224899]
[1738362991975,3.01471,3317.1,3316.8,0.28224899]
[1738362993171,3.0148,3317.0,3316.8,0.28224899]
[1738362993346,3.76686,3316.9,3316.8,0.28224899]
[1738362993964,3.01502,3316.8,3316.4,0.98338709]
[1738362994282,3.0151,3316.7,3316.4,0.98338709]
[1738362995655,3.0151,3316.7,3316.5,0.28229628]
[1738362997390,3.0151,3316.7,3316.6,0.28229628]
[1738362999193,3.0151,3316.7,3316.5,0.28229628]
[1738362999571,6.53383944,3316.9,3316.5,0.28229628]
[1738362999572,3.51895944,3316.9,3316.5,0.28229628]
[1738363000569,1.41990906,3316.6,3316.5,0.28229628]
[1738363000972,1.41990906,3316.6,3316.4,4.48338709]
[1738363001182,1.41990906,3316.6,3316.4,4.49869709]
[1738363001414,1.41990906,3316.6,3316.4,5.19161592]
[1738363002194,1.41990906,3316.6,3316.5,3.01522]
[1738363002397,1.41990906,3316.6,3316.5,3.29722927]
[1738363002696,1.41990906,3316.6,3316.5,0.28200927]
[1738363006679,1.41990906,3316.6,3316.5,3.29722927]
[1738363007613,1.41990906,3316.6,3316.5,0.28200927]
[1738363010478,1.41990906,3316.6,3316.5,3.29722927]
[1738363010678,1.41990906,3316.6,3316.5,0.28200927]
[1738363011491,1.41990906,3316.6,3316.5,3.29722927]
[1738363013514,1.41990906,3316.6,3316.5,0.28200927]
[1738363016223,1.41990906,3316.6,3316.5,3.28200927]
[1738363016821,1.41990906,3316.6,3316.5,0.28200927]
[1738363017187,1.41990906,3316.6,3316.5,1.15195882]
[1738363018139,1.41990906,3317.0,3316.8,3.0]
[1738363018341,1.41990906,3317.0,3316.9,6.01486]
[1738363018842,1.41990906,3317.2,3317.0,6.01468]
[1738363019004,1.41990906,3317.6,3317.3,3.01449]
[1738363019210,1.41990906,3317.6,3317.5,6.01431]
[1738363019393,1.41990906,3317.6,3317.5,6.51431]
[1738363019942,1.41990906,3317.8,3317.7,3.01408]
[1738363020146,1.41990906,3317.8,3317.7,6.01408]
[1738363020445,1.41990906,3318.0,3317.9,6.0139]
[1738363020644,0.8294,3318.4,3318.0,3.0]
[1738363020942,0.8294,3318.4,3317.8,3.0]
[1738363021104,0.8294,3318.4,3318.0,3.01385]
[1738363021592,0.8294,3318.4,3318.1,3.0]
[1738363021938,0.8294,3318.4,3317.9,6.51394]
[1738363025540,0.8294,3318.4,3318.0,3.0138]
[1738363027417,2.76630761,3318.5,3318.3,3.0]
[1738363028423,2.76630761,3318.5,3318.1,3.0]
[1738363029150,2.76630761,3318.5,3318.1,3.01376]
[1738363029358,2.76630761,3318.5,3318.1,3.01371]
[1738363029534,2.76630761,3318.5,3318.1,4.12086039]
[1738363032362,3.55380761,3318.5,3318.1,1.10715039]
[1738363032724,2.76630761,3318.5,3318.1,1.10715039]
[1738363032923,2.76630761,3318.5,3318.2,6.01365]
[1738363033361,2.76630761,3318.5,3318.2,3.01366]
[1738363033539,2.76630761,3318.5,3318.3,0.41208104]
[1738363033733,2.76630761,3318.5,3318.3,6.42559104]
[1738363034618,2.76630761,3318.5,3318.3,3.41208104]
[1738363035058,2.76630761,3318.5,3318.3,0.41208104]
[1738363035255,2.76630761,3318.5,3318.3,3.01359]
[1738363037226,2.76630761,3318.5,3318.4,3.0]
[1738363038176,2.76630761,3318.8,3318.6,3.0]
[1738363038882,2.76630761,3318.8,3318.5,3.0]
[1738363039167,2.76630761,3318.8,3318.6,0.65135]
[1738363040053,2.76630761,3318.8,3318.5,3.0]
[1738363040440,0.7532,3318.7,3318.5,3.0]
[1738363040749,1.4184371,3318.6,3318.5,3.0]
[1738363041837,1.4184371,3318.6,3318.1,3.0]
[1738363042041,1.4184371,3318.6,3317.4,5.35]
[1738363042042,2.1716371,3318.2,3317.7,3.01412]
[1738363042261,1.4184371,3317.9,3317.8,0.351412]
[1738363042978,1.4184371,3317.9,3317.8,3.351412]
[1738363043270,1.4184371,3318.1,3317.8,3.351412]
[1738363043881,1.4184371,3318.1,3317.9,3.01394]
[1738363044041,1.4184371,3318.1,3317.9,3.0]
[1738363044242,1.4184371,3318.1,3318.0,0.6365442]
[1738363045250,1.4184371,3318.1,3318.0,3.6504042]
[1738363048091,1.4184371,3318.3,3318.2,6.01363]
[1738363050790,1.4184371,3318.3,3318.2,6.51363]
[1738363050970,1.4184371,3318.5,3318.4,3.01341]
[1738363053491,1.4184371,3318.5,3318.4,3.966114]
[1738363056265,1.4184371,3318.5,3318.4,3.01341]
[1738363056894,1.4184371,3318.5,3318.4,3.61763486]
[1738363057263,1.4184371,3318.9,3318.6,6.01331]
[1738363057462,1.4184371,3318.9,3318.7,6.51321]
[1738363057681,1.4184371,3318.9,3318.8,3.651321]
[1738363058265,1.4184371,3318.9,3318.8,0.651321]
[1738363058697,1.4184371,3318.9,3318.7,3.01322]
[1738363058894,1.4184371,3318.9,3318.8,3.01313]
[1738363059194,1.4184371,3318.9,3318.6,3.01331]
[1738363059376,1.4184371,3318.9,3318.7,3.0132]
[1738363061202,1.4184371,3318.9,3318.8,3.0]
[1738363061404,1.4184371,3318.9,3318.8,3.902651]
[1738363065369,1.4184371,3318.9,3318.8,0.902651]
[1738363067671,1.4184371,3318.9,3318.7,3.0132]
[1738363068206,1.4184371,3318.9,3318.6,3.0]
[1738363068401,1.4184371,3318.9,3318.4,3.61769486]
[1738363068702,1.4184371,3318.9,3318.6,3.01331]
[1738363068906,1.4184371,3318.7,3318.5,3.0]
[1738363069077,1.4184371,3318.7,3318.6,6.67507949]
[1738363069792,1.4184371,3318.7,3318.4,3.01347]
[1738363069993,1.4184371,3318.9,3318.6,0.5]
[1738363070212,1.4184371,3320.6,3319.7,0.5]
[1738363070526,1.4184371,3320.6,3320.1,3.01192]
[1738363070673,1.4184371,3320.6,3320.5,3.01159]
[1738363070870,1.4184371,3320.6,3319.7,0.5]
[1738363071076,1.4184371,3320.0,3319.3,0.5]
[1738363071329,1.4184371,3319.8,3319.5,0.61403719]
[1738363071524,1.4184371,3319.6,3319.1,3.01278]
[1738363071680,1.4184371,3319.6,3319.2,3.01272]
[1738363071877,1.4184371,3319.6,3319.3,3.0]
[1738363072078,1.4184371,3319.4,3319.0,0.5]
[1738363072388,1.4184371,3319.2,3318.4,0.5]
[1738363072584,3.55759517,3319.4,3318.7,3.01316]
[1738363072811,3.55759517,3319.4,3318.8,3.0]
[1738363073779,3.0127,3319.3,3318.7,3.0]
[1738363074410,3.01278,3319.2,3318.7,3.0]
[1738363074620,6.57022517,3319.4,3318.7,3.01322]
[1738363078108,3.55759517,3319.4,3318.7,3.01322]
[1738363078681,6.57018517,3319.4,3318.7,3.01322]
[1738363078881,2.76479517,3319.4,3319.2,3.01272]
[1738363079097,3.71999517,3319.7,3319.1,3.01279]
[1738363079301,3.51799517,3319.7,3319.1,3.01279]
[1738363080214,6.53032517,3319.7,3319.1,3.01279]
[1738363080595,3.51799517,3319.7,3319.2,3.0127]
[1738363080807,3.51799517,3319.7,3319.1,3.01279]
[1738363081006,3.51799517,3319.7,3319.1,3.67525241]
[1738363081308,3.51799517,3319.7,3319.2,3.01275]
[1738363081509,3.51799517,3320.0,3319.3,0.5]
[1738363081708,2.76479517,3320.3,3319.6,3.0124]
[1738363081913,2.76479517,3320.3,3319.9,3.01212]
[1738363082226,3.21344,3320.7,3320.0,3.0]
[1738363082227,2.76479517,3320.6,3320.0,3.0]
[1738363082517,0.1658423,3320.8,3320.4,3.01167]
[1738363082890,0.1658423,3320.8,3320.4,3.04178455]
[1738363083121,0.1658423,3320.8,3320.4,3.01167]
[1738363083323,0.1658423,3320.8,3320.2,3.01185]
[1738363083513,0.1658423,3320.8,3320.3,3.01175]
[1738363084814,0.1658423,3320.8,3320.3,3.312925]
[1738363085042,0.1658423,3320.8,3320.4,3.01167]
[1738363085950,0.1658423,3320.8,3320.3,0.301175]
[1738363086143,0.1658423,3320.8,3320.5,3.01153]
[1738363086455,0.1658423,3320.8,3320.6,3.0]
[1738363086960,0.1658423,3320.8,3320.3,3.0]
[1738363087176,0.1658423,3320.8,3320.6,3.01148]
[1738363087331,0.1658423,3320.8,3320.7,6.51141]
[1738363087524,0.1658423,3320.8,3320.7,7.463699]
[1738363089032,0.1658423,3320.8,3320.7,3.952289]
[1738363089231,0.1658423,3320.8,3320.7,3.0]
[1738363090474,0.1658423,3320.8,3320.4,0.5]
[1738363090641,0.1658423,3320.8,3320.4,4.10621346]
[1738363091028,0.1658423,3320.8,3320.5,3.0]
[1738363091226,0.1658423,3320.8,3320.5,6.01155]
[1738363091620,0.1658423,3320.8,3320.5,3.0]
[1738363091825,0.1658423,3320.8,3320.2,3.01186]
[1738363092026,0.1658423,3320.8,3320.5,3.01158]
[1738363096566,0.1658423,3320.8,3320.4,3.0]
[1738363096941,0.1658423,3320.8,3320.4,6.01168]
[1738363099280,0.1658423,3320.8,3320.5,3.01159]
[1738363102438,0.1658423,3320.8,3320.5,3.01157]
[1738363102669,0.1658423,3320.8,3320.6,0.301157]
[1738363103983,0.8005,3320.7,3320.3,3.362926]
[1738363104170,2.76479517,3320.6,3320.1,3.01193]
[1738363105051,2.76479517,3320.6,3320.2,3.0]
[1738363105784,2.76479517,3320.6,3320.2,6.01186]
[1738363106660,2.76479517,3320.6,3320.1,3.0]
[1738363106865,2.76479517,3320.6,3320.1,6.01195]
[1738363107765,3.01169,3320.4,3319.8,1.09533138]
[1738363108088,3.01169,3320.4,3319.9,3.71075814]
[1738363108261,5.77631517,3320.6,3319.9,6.72281814]
[1738363108463,2.76479517,3320.6,3320.1,3.01191]
[1738363111760,0.7971,3320.5,3319.9,3.71075814]
[1738363111964,0.7971,3320.5,3319.9,3.0]
[1738363111965,3.80875,3320.5,3319.9,3.0]
[1738363113086,3.80875,3320.5,3319.9,6.01209]
[1738363119508,3.01169,3320.4,3319.9,6.01209]
[1738363121307,0.7971,3320.5,3319.9,6.01209]
[1738363122074,3.8087,3320.5,3319.9,6.01209]
[1738363124300,2.76479517,3320.3,3319.8,3.62249579]
[1738363124500,0.7676,3320.2,3319.9,3.0]
[1738363124701,0.7676,3320.2,3319.8,3.62249579]
[1738363127299,0.7676,3320.2,3319.8,0.61029579]
[1738363127616,0.7676,3320.2,3319.8,3.62251579]
[1738363131397,0.7676,3320.2,3319.5,0.5]
[1738363131606,0.7676,3320.2,3319.6,3.01234]
[1738363132002,0.7676,3320.2,3319.7,3.01231]
[1738363133429,0.7676,3320.2,3319.5,0.5]
[1738363133604,0.7676,3320.2,3319.6,3.0]
[1738363133921,0.7676,3320.2,3319.7,3.01226]
[1738363134130,0.7676,3320.2,3319.7,3.60879522]
[1738363135523,3.77952,3320.2,3319.6,3.651246]
[1738363135729,3.77952,3320.2,3319.6,6.663626]
[1738363136127,3.01215,3319.9,3319.5,0.61136871]